bitfinex/quotes_SOLUSD_20260314
["timestamp","ask_amount","ask_price","bid_price","bid_amount"]
[1773469460573,3.68661367,87.72,87.695,0.71919195]
[1773469461577,3.68661367,87.72,87.697,0.68513573]
[1773469461979,0.09758136,87.729,87.697,0.68513573]
[1773469462178,3.68661367,87.74,87.701,0.68513573]
[1773469462474,11.03128472,87.74,87.701,0.68513573]
[1773469462676,10.94661367,87.74,87.701,0.68513573]
[1773469462876,0.0783269,87.739,87.701,0.68513573]
[1773469463380,0.0783269,87.729,87.701,0.68513573]
[1773469463778,0.07205562,87.74,87.703,0.68513573]
[1773469463977,0.07205562,87.739,87.703,0.68513573]
[1773469465364,0.07205562,87.739,87.704,11.4019885]
[1773469465571,0.07205562,87.739,87.705,0.68513573]
[1773469468090,11.46949575,87.739,87.706,11.4017285]
[1773469468294,11.46949575,87.739,87.707,0.68513573]
[1773469469180,11.39744013,87.739,87.711,0.68513573]
[1773469470295,11.43335209,87.739,87.711,0.68513573]
[1773469472896,11.43335209,87.739,87.713,0.68513573]
[1773469473395,11.39744013,87.739,87.713,0.68513573]
[1773469473896,16.77591499,87.743,87.713,0.68513573]
[1773469475201,16.77591499,87.743,87.715,0.68513573]
[1773469475697,3.68661367,87.74,87.715,0.68513573]
[1773469475898,5.37898556,87.743,87.715,0.68513573]
[1773469478304,5.37898556,87.743,87.717,0.68513573]
[1773469479388,11.39705044,87.742,87.717,0.68513573]
[1773469479704,5.37898556,87.743,87.717,0.68513573]
[1773469480003,11.39649935,87.747,87.717,0.68513573]
[1773469480202,11.39649935,87.747,87.719,0.68513573]
[1773469481301,11.39649935,87.747,87.721,0.68513573]
[1773469482981,11.39649935,87.747,87.723,0.68513573]
[1773469483389,11.39589293,87.751,87.723,0.68513573]
[1773469485099,11.39589293,87.751,87.725,0.68513573]
[1773469485486,3.68661367,87.75,87.725,0.68513573]
[1773469488212,11.39589293,87.751,87.725,0.68513573]
[1773469493505,11.39589293,87.751,87.727,0.64244581]
[1773469494914,3.68661367,87.74,87.7,0.64244581]
[1773469495122,3.68661367,87.74,87.701,0.64244581]
[1773469495320,3.68661367,87.73,87.701,0.64244581]
[1773469495504,11.39873929,87.729,87.701,0.64244581]
[1773469496227,7.26,87.728,87.701,0.64244581]
[1773469497114,7.26,87.728,87.696,0.64244581]
[1773469497727,11.39899916,87.727,87.698,0.64244581]
[1773469498431,3.68661367,87.72,87.692,0.64244581]
[1773469499016,3.68661367,87.72,87.693,0.64244581]
[1773469499725,11.40003876,87.719,87.693,0.64244581]
[1773469500612,11.40003876,87.719,87.695,0.64244581]
[1773469501324,7.26,87.728,87.701,0.64244581]
[1773469501624,3.68661367,87.74,87.711,0.64244581]
[1773469501625,7.26,87.732,87.711,0.64244581]
[1773469502125,11.39847944,87.731,87.711,0.64244581]
[1773469506422,7.26,87.735,87.713,0.64244581]
[1773469508430,11.39627114,87.748,87.715,0.64244581]
[1773469508633,7.26,87.743,87.715,0.64244581]
[1773469511933,7.26,87.743,87.701,0.64244581]
[1773469511934,3.6856842,87.73,87.701,0.64244581]
[1773469512734,39.88967654,87.742,87.681,0.64244581]
[1773469512735,3.6856842,87.72,87.681,0.64244581]
[1773469512941,3.6856842,87.72,87.68,3.7856842]
[1773469512942,3.6856842,87.7,87.68,0.1]
[1773469513125,3.6856842,87.69,87.68,0.1]
[1773469513435,3.6856842,87.7,87.68,0.74244581]
[1773469513825,11.40263857,87.699,87.68,0.74244581]
[1773469514136,7.26,87.703,87.68,0.74244581]
[1773469514332,3.6856842,87.7,87.68,0.74244581]
[1773469515138,39.89058581,87.74,87.682,0.64244581]
[1773469515324,3.6856842,87.72,87.682,0.64244581]
[1773469515639,10.9456842,87.72,87.682,0.64244581]
[1773469515847,11.39997817,87.72,87.691,0.64244581]
[1773469516539,15.08566237,87.72,87.691,0.64244581]
[1773469516921,3.6856842,87.72,87.691,0.64244581]
[1773469518238,3.6856842,87.72,87.683,39.91651745]
[1773469518239,11.3994116,87.724,87.693,0.64244581]
[1773469518741,3.6856842,87.72,87.693,0.64244581]
[1773469520342,11.40003876,87.719,87.693,0.64244581]
[1773469522433,11.40003876,87.719,87.695,0.64244581]
[1773469522636,3.6856842,87.73,87.695,0.64244581]
[1773469523646,7.26,87.732,87.701,0.64244581]
[1773469523843,18.65836367,87.732,87.701,0.64244581]
[1773469524572,11.39744013,87.739,87.702,11.40224852]
[1773469524726,7.26,87.735,87.703,0.64244581]
[1773469525121,34.22,87.734,87.703,0.64244581]
[1773469525327,7.26,87.735,87.703,0.64244581]
[1773469525946,7.26,87.736,87.703,0.64244581]
[1773469526744,7.26,87.736,87.711,0.64244581]
[1773469528247,11.39795976,87.735,87.711,0.64244581]
[1773469529130,7.26,87.736,87.713,0.64244581]
[1773469529345,18.65791834,87.736,87.713,0.64244581]
[1773469531449,39.74070266,87.741,87.715,0.64244581]
[1773469533252,28.34342798,87.741,87.715,0.64244581]
[1773469533449,28.34342798,87.741,87.721,0.64244581]
[1773469534142,7.26,87.761,87.731,0.64244581]
[1773469534344,11.39519761,87.757,87.731,0.64244581]
[1773469534549,11.3956218,87.753,87.731,0.64244581]
[1773469536845,11.39494743,87.759,87.732,11.39834951]
[1773469537157,11.39494743,87.759,87.733,0.64244581]
[1773469537548,7.26,87.761,87.733,0.64244581]
[1773469537747,11.3956218,87.753,87.733,0.64244581]
[1773469540550,3.6856842,87.76,87.721,0.64244581]
[1773469541235,3.6856842,87.76,87.716,28.50107164]
[1773469541236,3.6856842,87.73,87.691,0.64244581]
[1773469541438,3.6856842,87.7,87.68,0.74244581]
[1773469542450,15.08827729,87.7,87.68,0.74244581]
[1773469542647,11.40193044,87.705,87.68,0.74244581]
[1773469543352,11.40091805,87.713,87.681,11.40497941]
[1773469543560,3.6856842,87.71,87.682,0.64244581]
[1773469543758,7.26,87.713,87.682,0.64244581]
[1773469544264,3.6856842,87.71,87.682,0.64244581]
[1773469544462,11.40133851,87.709,87.682,0.64244581]
[1773469544648,11.40133851,87.709,87.684,0.64244581]
[1773469547948,3.6856842,87.7,87.68,0.1]
[1773469548148,3.6856842,87.7,87.68,0.74244581]
[1773469548344,3.6856842,87.7,87.68,0.1]
[1773469548550,3.6856842,87.69,87.667,0.64244581]
[1773469549245,3.6856842,87.7,87.667,0.64244581]
[1773469549859,3.6856842,87.7,87.671,0.64244581]
[1773469550451,39.9046848,87.709,87.671,0.64244581]
[1773469550950,11.40133851,87.709,87.671,0.64244581]
[1773469551351,11.40133851,87.709,87.67,3.6856842]
[1773469551352,11.40133851,87.709,87.673,0.64244581]
[1773469552781,11.40133851,87.709,87.681,0.64244581]
[1773469554171,3.6856842,87.7,87.674,0.64244581]
[1773469555666,11.40263857,87.699,87.674,0.64244581]
[1773469558268,39.90923499,87.699,87.674,0.64244581]
[1773469558975,39.90923499,87.699,87.661,11.40758147]
[1773469559173,3.6856842,87.69,87.661,11.40758147]
[1773469559477,11.40263857,87.699,87.671,0.64244581]
[1773469560478,11.4015985,87.707,87.673,0.64244581]
[1773469561770,3.6856842,87.7,87.673,0.64244581]
[1773469562783,11.40263857,87.699,87.673,0.64244581]
[1773469562977,11.40263857,87.699,87.675,0.64244581]
[1773469564300,39.90559476,87.707,87.675,0.64244581]
[1773469564465,39.90559476,87.707,87.677,0.64244581]
[1773469564660,11.4015985,87.707,87.677,0.64244581]
[1773469566078,11.4018585,87.705,87.677,0.64244581]
[1773469567381,28.34342798,87.704,87.677,0.64244581]
[1773469570184,11.40211851,87.703,87.677,0.64244581]
[1773469571979,3.68925767,87.7,87.677,0.64244581]
[1773469572482,11.40263857,87.699,87.677,0.64244581]
[1773469572687,11.40263857,87.699,87.645,0.64244581]
[1773469572889,3.68925767,87.68,87.641,0.64244581]
[1773469573184,3.68925767,87.67,87.641,0.64244581]
[1773469573399,7.26,87.673,87.651,0.64244581]
[1773469573988,3.68925767,87.67,87.651,0.64244581]
[1773469574160,3.68925767,87.67,87.614,2.95506722]
[1773469574161,3.68925767,87.66,87.616,0.64244581]
[1773469574365,0.35755419,87.629,87.596,11.41604639]
[1773469574590,0.35755419,87.628,87.591,11.41669806]
[1773469574992,0.25755419,87.609,87.566,11.41990474]
[1773469575292,7.26,87.612,87.58,3.68925767]
[1773469575470,0.25755419,87.618,87.58,3.68925767]
[1773469575679,7.26,87.622,87.59,3.68925767]
[1773469575883,6.76,87.622,87.569,2.95506722]
[1773469576078,0.25755419,87.616,87.578,11.41830273]
[1773469576283,3.68925767,87.61,87.579,0.46713022]
[1773469576476,0.25755419,87.609,87.568,0.46713022]
[1773469576676,0.25755419,87.609,87.571,0.46713022]
[1773469577009,0.25755419,87.609,87.56,11.42061129]
[1773469577010,3.68925767,87.6,87.56,11.42061129]
[1773469577289,3.68925767,87.6,87.483,45.72304229]
[1773469577290,3.68925767,87.59,87.567,0.46713022]
[1773469577786,0.25755419,87.598,87.56,11.88775591]
[1773469577972,0.25755419,87.589,87.56,11.88775591]
[1773469578295,0.25755419,87.589,87.49,76.50798448]
[1773469578296,34.22,87.589,87.547,0.46713022]
[1773469578497,3.68925767,87.58,87.549,0.5]
[1773469578790,11.41708909,87.588,87.551,0.5]
[1773469579102,7.26,87.599,87.561,0.5]
[1773469579275,3.68925767,87.6,87.564,0.5]
[1773469579983,7.26,87.607,87.571,0.5]
[1773469580170,11.41422212,87.61,87.583,0.5]
[1773469580372,7.26,87.611,87.583,0.5]
[1773469580885,7.26,87.619,87.591,0.5]
[1773469581678,7.26,87.619,87.582,11.41787125]
[1773469581894,7.26,87.619,87.583,0.5]
[1773469582291,11.41317994,87.618,87.585,0.5]
[1773469582492,11.41317994,87.618,87.591,0.5]
[1773469583705,11.41317994,87.618,87.584,0.5]
[1773469583995,7.26,87.617,87.586,0.5]
[1773469584394,7.26,87.617,87.591,0.5]
[1773469585185,7.26,87.617,87.581,0.5]
[1773469585380,11.41344046,87.616,87.581,11.91800162]
[1773469585586,18.67344046,87.616,87.582,0.5]
[1773469586098,11.41285142,87.621,87.591,0.5]
[1773469587700,3.68925767,87.62,87.582,0.5]
[1773469588385,28.34342798,87.619,87.582,0.5]
[1773469589300,11.4133102,87.617,87.585,0.5]
[1773469591284,28.34342798,87.616,87.585,0.5]
[1773469591904,11.41357073,87.615,87.585,0.5]
[1773469592297,11.41357073,87.615,87.587,0.5]
[1773469592908,3.68925767,87.61,87.581,11.91790852]
[1773469593899,3.68925767,87.61,87.583,11.41774088]
[1773469594096,3.68925767,87.61,87.582,0.5]
[1773469595309,28.34342798,87.616,87.582,0.5]
[1773469595509,39.75692193,87.616,87.584,0.5]
[1773469595808,39.75692193,87.616,87.591,0.5]
[1773469596211,39.75692193,87.616,87.58,3.68925767]
[1773469596512,39.75692193,87.616,87.581,0.5]
[1773469597313,19.3238219,87.624,87.601,0.5]
[1773469597514,18.67239684,87.625,87.601,0.5]
[1773469598698,11.41239842,87.624,87.603,0.5]
[1773469601006,11.41265892,87.622,87.603,0.5]
[1773469602217,11.41265892,87.622,87.594,0.5]
[1773469603106,11.41265892,87.622,87.595,11.41617672]
[1773469603306,11.41265892,87.622,87.596,0.5]
[1773469605825,3.68925767,87.62,87.59,0.5]
[1773469606004,0.48935073,87.579,87.53,3.68925767]
[1773469606205,3.68925767,87.57,87.53,3.68925767]
[1773469606717,7.26,87.572,87.54,3.68925767]
[1773469607806,7.26,87.572,87.541,39.98126591]
[1773469608005,7.26,87.572,87.542,0.45010826]
[1773469609122,7.26,87.572,87.551,0.45010826]
[1773469610021,0.45122128,87.598,87.561,0.45010826]
[1773469610233,0.45122128,87.598,87.571,0.45010826]
[1773469614035,0.45122128,87.598,87.572,11.41917507]
[1773469614329,0.3,87.579,87.543,0.49629973]
[1773469614656,0.3,87.579,87.542,28.55763724]
[1773469614657,0.3,87.586,87.551,0.49629973]
[1773469616123,0.3,87.584,87.553,0.49629973]
[1773469617430,0.3,87.584,87.542,28.55763724]
[1773469617431,0.3,87.579,87.548,0.49629973]
[1773469618230,0.3,87.573,87.532,0.49629973]
[1773469618536,34.29,87.579,87.551,0.49629973]
[1773469618537,7.26,87.572,87.551,0.49629973]
[1773469619437,7.26,87.572,87.553,0.49629973]
[1773469620428,0.3,87.587,87.561,0.49629973]
[1773469620732,11.4171856,87.588,87.561,0.49629973]
[1773469620918,34.29,87.587,87.561,0.49629973]
[1773469621118,11.4171856,87.588,87.561,0.49629973]
[1773469621633,0.3,87.587,87.563,0.49629973]
[1773469622741,11.4171856,87.588,87.563,0.49629973]
[1773469623240,11.4171856,87.588,70.54,32.26554338]
[1773469623241,11.7171856,87.588,87.505,61.6]
[1773469623440,0.49090979,87.579,87.528,39.98720408]
[1773469623638,0.49090979,87.569,87.53,3.68925767]
[1773469623833,0.26488979,87.569,87.531,0.49629973]
[1773469625054,0.26488979,87.569,87.541,0.49629973]
[1773469625226,11.41775511,87.583,87.56,3.68925767]
[1773469625423,34.29,87.588,87.561,0.49629973]
[1773469625639,11.41654998,87.593,87.563,0.49629973]
[1773469626242,11.41513884,87.603,87.571,0.49629973]
[1773469626722,11.90604863,87.603,87.571,0.49629973]
[1773469627546,11.90604863,87.603,87.573,0.49629973]
[1773469627732,0.49090979,87.599,87.573,0.49629973]
[1773469628334,0.49090979,87.606,87.573,0.49629973]
[1773469629141,11.41487358,87.605,87.573,0.49629973]
[1773469629742,11.41487358,87.605,87.575,0.49629973]
[1773469630046,11.90578337,87.605,87.575,0.49629973]
[1773469632245,11.90578337,87.605,87.574,11.41891428]
[1773469632246,11.90578337,87.605,87.577,0.49629973]
[1773469633151,11.90578337,87.605,87.576,11.41865351]
[1773469633152,11.90578337,87.605,87.581,0.49629973]
[1773469634326,28.34342798,87.608,87.581,0.49629973]
[1773469634739,11.41461298,87.607,87.583,0.49629973]
[1773469634938,28.34342798,87.608,87.583,0.49629973]
[1773469635231,28.83433777,87.608,87.583,0.49629973]
[1773469636253,11.4104048,87.61,87.583,0.49629973]
[1773469636458,0.49090979,87.633,87.591,0.49629973]
[1773469636645,0.49090979,87.633,87.611,0.49629973]
[1773469637048,7.26,87.663,87.621,0.49629973]
[1773469637232,0.49090979,87.67,87.641,0.49629973]
[1773469637751,0.49090979,87.649,87.605,0.49629973]
[1773469637957,0.49090979,87.639,87.605,0.49629973]
[1773469638131,0.49090979,87.619,87.59,0.49629973]
[1773469638337,0.49090979,87.617,87.59,11.91311097]
[1773469638547,7.26,87.644,87.603,0.49629973]
[1773469638743,11.40938584,87.648,87.611,0.49629973]
[1773469639450,0.49090979,87.647,87.611,0.49629973]
[1773469639661,11.40938584,87.648,87.621,0.49629973]
[1773469639951,11.40863528,87.653,87.621,0.49629973]
[1773469641539,11.40863528,87.653,87.623,0.45160122]
[1773469642660,11.40863528,87.653,87.625,0.45160122]
[1773469642844,0.47386736,87.652,87.625,0.45160122]
[1773469643657,0.5,87.65,87.625,0.45160122]
[1773469643956,0.47386736,87.649,87.625,0.45160122]
[1773469644754,0.47386736,87.647,87.624,11.41239842]
[1773469645459,0.5,87.65,87.625,0.45160122]
[1773469646844,0.97386736,87.65,87.626,11.86373916]
[1773469647447,0.97386736,87.65,87.627,0.45160122]
[1773469647865,11.88301064,87.649,87.627,0.45160122]
[1773469648052,11.40914328,87.649,87.627,0.45160122]
[1773469648939,0.47386736,87.649,87.627,0.45160122]
[1773469649159,11.88301064,87.649,87.627,0.45160122]
[1773469649366,0.47386736,87.648,87.627,11.86359154]
[1773469650063,0.47386736,87.646,87.627,0.45160122]
[1773469652860,0.47386736,87.644,87.616,11.41333184]
[1773469653170,0.47386736,87.629,87.6,0.45160122]
[1773469654568,0.47386736,87.627,87.602,0.45160122]
[1773469655459,0.47386736,87.627,87.603,11.41513418]
[1773469655664,0.47386736,87.627,87.604,0.45160122]
[1773469656055,11.8860053,87.626,87.604,0.45160122]
[1773469656850,0.47386736,87.633,87.604,0.45160122]
[1773469658576,0.47386736,87.633,87.606,0.45160122]
[1773469659851,0.47386736,87.633,87.607,11.41461298]
[1773469660052,0.47386736,87.633,87.608,0.45160122]
[1773469660374,0.47386736,87.631,87.608,0.45160122]
[1773469662174,11.41161702,87.63,87.608,0.45160122]
[1773469662359,11.41161702,87.63,87.59,7.26]
[1773469662360,0.47386736,87.629,87.591,0.45160122]
[1773469662961,43.637676,87.63,87.573,0.45160122]
[1773469662962,0.47386736,87.609,87.573,0.45160122]
[1773469663571,0.47386736,87.609,87.577,0.45160122]
[1773469663870,0.47386736,87.609,87.571,0.45160122]
[1773469664074,0.47386736,87.607,87.585,3.4353199]
[1773469664453,34.76386736,87.607,87.585,3.4353199]
[1773469664666,0.17027973,87.599,87.556,0.45160122]
[1773469664867,0.17027973,87.589,87.556,0.45160122]
[1773469665073,0.17027973,87.589,87.561,0.45160122]
[1773469665771,0.17027973,87.607,87.571,0.45160122]
[1773469666077,0.17027973,87.605,87.573,0.45160122]
[1773469667200,28.53287636,87.619,87.573,0.45160122]
[1773469667201,11.58361141,87.617,87.573,0.45160122]
[1773469667379,0.17027973,87.616,87.591,0.48390472]
[1773469669070,0.17027973,87.622,87.591,0.48390472]
[1773469670166,11.41278917,87.621,87.593,0.48390472]
[1773469670361,11.5830689,87.621,87.593,0.48390472]
[1773469672586,11.5830689,87.621,87.595,0.49453633]
[1773469674786,0.49810996,87.619,87.552,2.95506722]
[1773469674988,0.49810996,87.619,87.57,3.69701642]
[1773469675288,0.49810996,87.619,87.58,3.69701642]
[1773469676786,11.41317994,87.618,87.581,11.41800162]
[1773469676989,0.49810996,87.617,87.582,0.49453633]
[1773469680800,0.49810996,87.615,87.591,0.49453633]
[1773469681091,18.69344046,87.616,87.591,0.49453633]
[1773469683168,7.28,87.616,87.601,0.49453633]
[1773469684370,7.28,87.626,87.601,0.49453633]
[1773469684989,7.28,87.626,87.603,0.49453633]
[1773469687475,7.28,87.626,87.605,0.49453633]
[1773469687707,7.77810996,87.626,87.605,0.49453633]
[1773469688196,7.28,87.626,87.605,0.49453633]
[1773469688580,0.49810996,87.646,87.612,0.49453633]
[1773469688776,0.49810996,87.646,87.602,0.49453633]
[1773469689611,0.49810996,87.644,87.604,0.49453633]
[1773469689984,0.49810996,87.639,87.604,0.49453633]
[1773469691301,7.28,87.638,87.604,0.49453633]
[1773469691481,0.49810996,87.637,87.611,0.49453633]
[1773469693094,0.49810996,87.637,87.613,0.49453633]
[1773469693400,34.29,87.654,87.612,11.41396155]
[1773469693401,7.28,87.666,87.631,0.49453633]
[1773469693700,7.77810996,87.668,87.641,0.49453633]
[1773469693884,7.77810996,87.668,87.651,0.49453633]
[1773469695081,0.49810996,87.668,87.651,0.49453633]
[1773469696698,11.40620338,87.672,87.645,0.49453633]
[1773469696887,0.49810996,87.671,87.645,0.49453633]
[1773469698103,0.49810996,87.669,87.641,11.41018473]
[1773469698897,0.49810996,87.669,87.642,0.49453633]
[1773469699710,0.49810996,87.669,87.644,0.49453633]
[1773469700998,11.40667062,87.668,87.644,0.49453633]
[1773469702101,0.45439459,87.669,87.644,0.49453633]
[1773469703396,0.45439459,87.669,87.646,0.46602964]
[1773469703890,28.51366139,87.678,87.615,2.95506722]
[1773469703891,11.85716318,87.698,87.661,0.46602964]
[1773469704095,0.45439459,87.688,87.661,0.46602964]
[1773469704508,0.45439459,87.687,87.661,0.46602964]
[1773469705413,0.45439459,87.679,87.648,0.46602964]
[1773469706109,0.45439459,87.677,87.648,0.46602964]
[1773469707893,0.45439459,87.669,87.632,11.87738622]
[1773469708099,0.45439459,87.669,87.633,0.46602964]
[1773469708913,0.45439459,87.677,87.641,0.46602964]
[1773469709091,7.28,87.678,87.651,0.46602964]
[1773469710098,11.85989432,87.677,87.651,0.46602964]
[1773469710297,0.45439459,87.676,87.651,0.46602964]
[1773469712597,0.45439459,87.676,87.653,0.46602964]
[1773469712897,7.28,87.678,87.653,0.46602964]
[1773469713717,11.40534726,87.679,87.653,0.46602964]
[1773469714514,11.40534726,87.679,87.655,0.46602964]
[1773469717198,11.40534726,87.679,87.656,11.40823218]
[1773469717516,11.40534726,87.679,87.657,0.46602964]
[1773469718306,0.45439459,87.682,87.656,11.40823218]
[1773469718307,0.45439459,87.682,87.661,0.46602964]
[1773469719131,103.4,87.686,87.661,0.46602964]
[1773469719296,7.28,87.69,87.671,0.46602964]
[1773469720120,0.45439459,87.695,87.671,0.46602964]
[1773469720424,0.45439459,87.695,87.672,0.46602964]
[1773469722622,11.40296586,87.697,87.674,0.46602964]
[1773469723002,0.45439459,87.696,87.657,0.46602964]
[1773469723221,0.45439459,87.696,87.644,28.52422534]
[1773469723222,0.45439459,87.679,87.644,28.52422534]
[1773469724408,0.45439459,87.679,87.65,3.6914498]
[1773469725128,0.45439459,87.678,87.653,0.46602964]
[1773469726723,0.45439459,87.678,87.654,11.87452212]
[1773469726924,0.48761059,87.676,87.654,11.87452212]
[1773469728020,0.48761059,87.685,87.655,0.46173381]
[1773469728224,0.48761059,87.685,87.654,11.40849248]
[1773469728225,0.48761059,87.685,87.661,0.46173381]
[1773469729324,0.48761059,87.683,87.66,3.6914498]
[1773469730726,0.48761059,87.683,87.661,11.40758147]
[1773469731525,0.48761059,87.683,87.662,0.4642848]
[1773469731909,0.48761059,87.683,87.661,11.40758147]
[1773469731910,0.4722593,87.681,87.656,11.408137]
[1773469734829,0.4722593,87.679,87.653,0.4642848]
[1773469738031,11.87685957,87.684,87.655,0.4642848]
[1773469738221,11.87685957,87.684,87.661,0.4642848]
[1773469738628,0.4722593,87.683,87.654,11.87277728]
[1773469740131,11.40484934,87.682,87.655,0.4642848]
[1773469740331,0.4722593,87.681,87.655,0.4642848]
[1773469741542,0.4722593,87.669,87.63,0.4642848]
[1773469742040,0.4722593,87.659,87.63,0.4642848]
[1773469742417,0.4722593,87.659,87.631,11.41137808]
[1773469742634,0.4722593,87.659,87.636,15.12677025]
[1773469743819,0.4722593,87.658,87.636,15.12677025]
[1773469745832,0.4722593,87.658,87.636,15.59105505]
[1773469746454,11.40810203,87.657,87.636,15.59105505]
[1773469746758,0.4722593,87.656,87.636,15.59105505]
[1773469748956,0.4722593,87.656,87.637,0.4642848]
[1773469749656,11.88062162,87.655,87.637,0.4642848]
[1773469749840,0.4722593,87.655,87.637,0.4642848]
[1773469752855,0.4722593,87.655,87.636,3.71603371]
[1773469754153,0.4722593,87.655,87.636,4.18031851]
[1773469754657,0.4722593,87.655,87.637,0.4642848]
[1773469757283,0.4722593,87.659,87.639,0.4642848]
[1773469758060,7.28,87.66,87.641,0.4642848]
[1773469759461,7.7522593,87.66,87.641,0.4642848]
[1773469760558,0.4722593,87.657,87.641,0.4642848]
[1773469761036,7.28,87.66,87.636,3.71603371]
[1773469761037,0.4847021,87.687,87.651,0.4642848]
[1773469761238,0.4847021,87.679,87.651,0.4642848]
[1773469762969,0.4847021,87.677,87.651,0.4642848]
[1773469763468,0.4847021,87.677,87.641,0.4691543]
[1773469765253,0.4847021,87.675,87.643,0.4691543]
[1773469767759,0.4847021,87.659,87.637,11.41062768]
[1773469768944,0.4847021,87.659,87.637,11.87978198]
[1773469769262,0.4847021,87.659,87.638,0.4691543]
[1773469771265,0.4847021,87.657,87.638,0.4691543]
[1773469772748,0.4847021,87.657,87.641,0.4691543]
[1773469774667,0.4847021,87.662,87.641,0.4691543]
[1773469776962,0.4847021,87.66,87.641,0.4691543]
[1773469779967,0.4847021,87.658,87.641,0.4691543]
[1773469783670,0.4847021,87.649,87.621,0.4691543]
[1773469783874,0.4847021,87.639,87.611,0.4691543]
[1773469784451,0.4847021,87.629,87.594,0.4691543]
[1773469785270,34.7747021,87.629,87.594,0.4691543]
[1773469785473,0.4847021,87.628,87.596,0.4691543]
[1773469786272,0.4847021,87.626,87.598,0.4691543]
[1773469786774,0.45376299,87.641,87.611,0.4609616]
[1773469786976,0.45376299,87.639,87.611,0.4609616]
[1773469787296,0.45376299,87.629,87.604,0.4609616]
[1773469788859,0.45376299,87.627,87.601,0.4609616]
[1773469791478,0.46739486,87.625,87.6,3.69287032]
[1773469791864,0.46739486,87.625,87.598,0.45503955]
[1773469793171,0.46739486,87.625,87.6,3.69287032]
[1773469793474,0.46739486,87.623,87.596,11.41600181]
[1773469795377,0.46739486,87.621,87.596,11.41600181]
[1773469796482,0.46739486,87.619,87.596,11.41600181]
[1773469797583,0.46739486,87.619,87.588,11.41696106]
[1773469797888,0.46739486,87.619,87.584,0.45503955]
[1773469798487,0.46739486,87.617,87.586,0.45503955]
[1773469800982,0.46739486,87.615,87.585,11.41748016]
[1773469801380,0.46739486,87.615,87.57,0.45503955]
[1773469801581,0.46739486,87.599,87.565,0.45503955]
[1773469801979,0.46739486,87.599,87.564,11.42018058]
[1773469802588,0.46739486,87.599,87.562,0.45503955]
[1773469802978,0.46739486,87.599,87.563,11.42034877]
[1773469804192,3.69287032,87.6,87.563,11.87538832]
[1773469804193,0.46739486,87.597,87.563,11.87538832]
[1773469804378,0.46739486,87.597,87.563,0.45503955]
[1773469805493,0.46739486,87.596,87.563,0.45503955]
[1773469807784,0.46739486,87.594,87.565,0.45503955]
[1773469808881,0.46739486,87.594,87.571,0.45503955]
[1773469809784,0.46739486,87.594,87.57,3.69287032]
[1773469809979,0.46739486,87.594,87.571,11.41930547]
[1773469811482,0.46739486,87.593,87.571,11.41930547]
[1773469811893,0.46739486,87.593,87.57,3.69287032]
[1773469813098,0.46739486,87.591,87.57,3.69287032]
[1773469813595,0.46739486,87.591,87.567,11.41981007]
[1773469814297,0.46739486,87.591,87.567,0.45503955]
[1773469815104,0.46739486,87.589,87.567,0.45503955]
[1773469817607,11.41708909,87.588,87.567,0.45503955]
[1773469817791,0.46739486,87.587,87.567,0.45503955]
[1773469819207,0.46739486,87.587,87.569,0.45503955]
[1773469820109,0.46739486,87.587,87.57,4.15306741]
[1773469820892,0.46739486,87.586,87.57,0.45503955]
[1773469821901,0.46491195,87.588,87.57,0.45503955]
[1773469822102,0.46491195,87.588,87.56,3.79802786]
[1773469822103,0.46491195,87.588,87.56,0.1]
[1773469822306,0.46491195,87.586,87.56,0.1]
[1773469822798,0.46491195,87.586,87.56,3.79802786]
[1773469822993,0.46491195,87.586,87.561,0.4620365]
[1773469823995,0.46491195,87.584,87.561,0.4620365]
[1773469824306,1.42542761,87.587,87.563,0.4620365]
[1773469824513,0.46491195,87.594,87.571,0.4620365]
[1773469824892,11.41591087,87.598,87.581,0.4620365]
[1773469825301,11.41552511,87.6,87.581,0.4620365]
[1773469825810,11.88043706,87.6,87.581,0.4620365]
[1773469826117,0.46491195,87.599,87.581,0.4620365]
[1773469829113,0.46491195,87.599,87.583,0.4620365]
[1773469830213,3.69802786,87.59,87.56,0.1]
[1773469830411,0.46491195,87.589,87.56,0.1]
[1773469830912,0.46491195,87.589,87.561,0.4620365]
[1773469831421,11.41708909,87.588,87.561,0.4620365]
[1773469831599,0.46491195,87.587,87.561,0.4620365]
[1773469834106,0.46491195,87.585,87.561,0.4620365]
[1773469834611,0.46491195,87.585,87.562,0.4620365]
[1773469835317,11.4173498,87.586,87.562,0.4620365]
[1773469835695,11.88174454,87.59,87.562,0.4620365]
[1773469836300,0.46491195,87.589,87.563,11.42034877]
[1773469836513,0.46491195,87.589,87.564,0.4620365]
[1773469841023,0.46491195,87.589,87.566,0.4620365]
[1773469842420,11.41708909,87.588,87.566,0.4620365]
[1773469843222,0.46491195,87.588,87.566,0.4620365]
[1773469846102,11.88204161,87.588,87.566,0.4620365]
[1773469847728,37.235304,108.0,87.571,0.4691543]